fUSD/lending_fUSD_20240915
["ID","MTS","AMOUNT","RATE_DAILY","PERIOD"]
[338209177,1726386651641,-500.0,0.00013059,2]
[338209178,1726386651652,-1235.92,0.00013059,2]
[338209179,1726386651661,-500.0,0.00013059,2]
[338209180,1726386651671,-1744.99,0.00013059,2]
[338209181,1726386651680,-500.0,0.00013059,2]
[338209182,1726386651690,-2206.82,0.00013059,2]
[338209183,1726386651699,-2524.23,0.00013059,2]
[338209184,1726386651709,-500.0,0.00013059,2]
[338209185,1726386651718,-500.0,0.00013059,2]
[338209186,1726386651728,-2100.75,0.00013059,2]
[338209187,1726386651737,-2501.11,0.00013059,2]
[338209188,1726386651747,-846.95,0.00013059,2]
[338209189,1726386651756,-539.57,0.00013059,2]
[338209190,1726386651766,-1470.93,0.00013059,2]
[338209191,1726386651776,-3358.33,0.00013059,2]
[338209192,1726386651785,-561.13,0.0001306,2]
[338209193,1726386651794,-2011.23,0.0001306,2]
[338209194,1726386651804,-2475.01,0.0001306,2]
[338209195,1726386651814,-500.0,0.0001306,2]
[338209196,1726386651823,-677.73,0.0001306,2]
[338209197,1726386651833,-1367.57,0.0001306,2]
[338209198,1726386651843,-1772.7,0.0001306,2]
[338209199,1726386651853,-1342.24,0.0001306,2]
[338209200,1726386651864,-613.39,0.0001306,2]
[338209201,1726386651874,-3121.53,0.0001306,2]
[338209202,1726386651884,-500.89866089,0.00013073,2]
[338209203,1726386651894,-1530.95158959,0.00013088,2]
[338209204,1726386651904,-500.0,0.0001316,2]
[338209205,1726386651913,-561.98,0.0001316,2]
[338209206,1726386651923,-500.0,0.0001316,2]
[338209207,1726386651932,-500.0,0.0001316,2]
[338209208,1726386651944,-500.0,0.0001316,2]
[338209209,1726386651954,-535.35244396,0.0001316,2]
[338209210,1726386651963,-1436.51,0.0001316,2]
[338209211,1726386651973,-500.0,0.0001316,2]
[338209212,1726386651982,-928.51,0.0001316,2]
[338209213,1726386651992,-842.4,0.0001316,2]
[338209214,1726386652002,-500.0,0.0001316,2]
[338209215,1726386652012,-1164.17,0.0001316,2]
[338209216,1726386652022,-645.17,0.0001316,2]
[338209217,1726386652031,-500.0,0.0001316,2]
[338209218,1726386652040,-639.18,0.0001316,2]
[338209219,1726386652050,-500.0,0.0001316,2]
[338209220,1726386652059,-591.77,0.0001316,2]
[338209221,1726386652068,-500.0,0.0001316,2]
[338209222,1726386652078,-602.89,0.0001316,2]
[338209223,1726386652087,-1098.11,0.0001316,2]
[338209224,1726386652096,-500.0,0.0001316,2]
[338209225,1726386652106,-715.1,0.0001316,2]
[338209226,1726386652115,-952.96,0.0001316,2]
[338209227,1726386652125,-1104.7,0.0001316,2]
[338209228,1726386652135,-621.97,0.0001316,2]
[338209229,1726386652145,-562.73,0.0001316,2]
[338209230,1726386652154,-500.0,0.0001316,2]
[338209231,1726386652164,-708.31,0.0001316,2]
[338209232,1726386652173,-665.16,0.0001316,2]
[338209233,1726386652183,-500.0,0.0001316,2]
[338209234,1726386652192,-500.0,0.0001316,2]
[338209235,1726386652202,-500.0,0.0001316,2]
[338209236,1726386652211,-500.0,0.0001316,2]
[338209237,1726386652222,-500.0,0.0001316,2]
[338209238,1726386652231,-1124.15,0.0001316,2]
[338209239,1726386652240,-1571.64,0.0001316,2]
[338209240,1726386652249,-1574.41,0.0001316,2]
[338209241,1726386652258,-600.39,0.0001316,2]
[338209242,1726386652268,-500.0,0.0001316,2]
[338209243,1726386652278,-708.84,0.0001316,2]
[338209244,1726386652287,-720.71,0.0001316,2]
[338209245,1726386652297,-500.0,0.0001316,2]
[338209246,1726386652306,-500.0,0.0001316,2]
[338209247,1726386652315,-500.0,0.0001316,2]
[338209248,1726386652325,-229.88619266,0.0001316,2]
[338209249,1726386652334,-650.12,0.0001316,2]
[338209250,1726386652344,-500.0,0.0001316,2]
[338209251,1726386652354,-500.0,0.0001316,2]
[338209252,1726386652363,-500.0,0.0001316,2]
[338209253,1726386652372,-1249.23,0.0001316,2]
[338209254,1726386652381,-500.0,0.0001316,2]
[338209255,1726386652391,-500.0,0.0001316,2]
[338209256,1726386652401,-708.48,0.0001316,2]
[338209257,1726386652411,-500.0,0.0001316,2]
[338209258,1726386652420,-802.37,0.0001316,2]
[338209259,1726386652430,-639.47,0.0001316,2]
[338209260,1726386652441,-556.09,0.0001316,2]
[338209261,1726386652450,-500.0,0.0001316,2]
[338209262,1726386652460,-500.0,0.0001316,2]
[338209263,1726386652470,-527.26,0.0001316,2]
[338209264,1726386652480,-500.0,0.0001316,2]
[338209265,1726386652489,-1066.93,0.0001316,2]
[338209266,1726386652499,-646.44,0.0001316,2]
[338209267,1726386652509,-1656.57,0.0001316,2]
[338209268,1726386652518,-763.97,0.0001316,2]
[338209269,1726386652527,-1411.55,0.0001316,2]
[338209270,1726386652536,-500.0,0.0001316,2]
[338209271,1726386652546,-500.0,0.0001316,2]
[338209272,1726386652594,-500.0,0.0001316,2]
[338209273,1726386652603,-550.13,0.0001316,2]
[338209274,1726386652614,-500.0,0.0001316,2]
[338209275,1726386652624,-500.0,0.0001316,2]
[338209276,1726386652633,-546.41,0.0001316,2]
[338209277,1726386652642,-500.0,0.0001316,2]
[338209278,1726386652652,-500.0,0.0001316,2]
[338209279,1726386652662,-257.94649809,0.0001316,2]
[338209280,1726386652671,-1742.19,0.0001316,2]
[338209281,1726386652681,-500.0,0.0001316,2]
[338209282,1726386652691,-563.77,0.0001316,2]
[338209283,1726386652701,-500.0,0.0001316,2]
[338209284,1726386652711,-500.0,0.0001316,2]
[338209285,1726386652720,-500.0,0.0001316,2]
[338209286,1726386652729,-500.0,0.0001316,2]
[338209287,1726386652739,-500.0,0.0001316,2]
[338209288,1726386652749,-500.0,0.0001316,2]
[338209289,1726386652758,-500.0,0.0001316,2]
[338209290,1726386652768,-500.0,0.0001316,2]
[338209291,1726386652777,-574.37,0.0001316,2]
[338209292,1726386652786,-1322.16,0.0001316,2]
[338209293,1726386652795,-1524.68,0.0001316,2]
[338209294,1726386652805,-722.53,0.0001316,2]
[338209295,1726386652815,-1451.07,0.0001316,2]
[338209296,1726386652824,-724.0,0.0001316,2]
[338209297,1726386652833,-1263.3,0.0001316,2]
[338209298,1726386652842,-500.0,0.0001316,2]
[338209299,1726386652854,-831.32,0.0001316,2]
[338209300,1726386652864,-500.0,0.0001316,2]
[338209301,1726386652873,-1412.73,0.0001316,2]
[338209302,1726386652882,-535.97,0.0001316,2]
[338209303,1726386652891,-762.35,0.0001316,2]
[338209304,1726386652900,-592.82,0.0001316,2]
[338209305,1726386652909,-500.0,0.0001316,2]
[338209306,1726386652919,-150.0,0.0001316,2]
[338209307,1726386652928,-500.0,0.0001316,2]
[338209308,1726386652938,-1356.7,0.0001316,2]
[338209309,1726386652948,-698.9,0.0001316,2]
[338209310,1726386652957,-1023.51,0.0001316,2]
[338209311,1726386652967,-500.0,0.0001316,2]
[338209312,1726386652976,-654.13,0.0001316,2]
[338209313,1726386652986,-500.0,0.0001316,2]
[338209314,1726386652995,-500.0,0.0001316,2]
[338209315,1726386653005,-500.0,0.0001316,2]
[338209316,1726386653014,-805.52,0.0001316,2]
[338209317,1726386653024,-500.0,0.0001316,2]
[338209318,1726386653034,-500.0,0.0001316,2]
[338209319,1726386653043,-545.85,0.0001316,2]
[338209320,1726386653052,-500.0,0.0001316,2]
[338209321,1726386653062,-995.8,0.0001316,2]
[338209322,1726386653072,-1242.26,0.0001316,2]
[338209323,1726386653082,-422.51,0.000132,2]
[338209324,1726386653091,-422.51,0.000132,2]
[338209325,1726386653101,-422.51,0.000132,2]
[338209326,1726386653110,-422.51,0.000132,2]
[338209327,1726386653120,-205.95140658,0.00013231,2]
[338209328,1726386653130,-1530.95158959,0.0001329,2]
[338209329,1726386653140,-5001.0,0.000133,2]
[338209330,1726386653150,-419.46,0.000133,2]
[338209331,1726386653160,-80261.76439801,0.0001333,2]
[338209332,1726386653169,-2113.01,0.0001333,2]
[338209333,1726386653179,-2238.96,0.0001333,2]
[338209334,1726386653189,-2019.7,0.0001333,2]
[338209335,1726386653199,-586.83,0.0001333,2]
[338209336,1726386653209,-3124.91,0.0001333,2]
[338209337,1726386653219,-968.98,0.0001333,2]
[338209338,1726386653228,-2456.08,0.0001333,2]
[338209339,1726386653238,-1949.11,0.0001333,2]
[338209340,1726386653247,-1848.91,0.0001333,2]
[338209341,1726386653258,-7557.05,0.0001333,2]
[338209342,1726386653268,-3493.4,0.0001333,2]
[338209343,1726386653278,-2992.82,0.0001333,2]
[338209344,1726386653288,-1981.17,0.0001333,2]
[338209345,1726386653298,-2109.44,0.0001333,2]
[338209346,1726386653308,-1429.35,0.0001333,2]
[338209347,1726386653318,-1380.26,0.0001333,2]
[338209348,1726386653328,-807.33,0.0001333,2]
[338209349,1726386653338,-673.25,0.0001333,2]
[338209350,1726386653348,-1456.37,0.0001333,2]
[338209351,1726386653357,-927.79,0.0001333,2]
[338209352,1726386653367,-1084.0,0.0001333,2]
[338209353,1726386653377,-1156.39,0.0001333,2]
[338209354,1726386653387,-1829.98,0.00013331,2]
[338209355,1726386653397,-500.0,0.00013331,2]
[338209356,1726386653407,-1618.9,0.00013331,2]
[338209357,1726386653417,-500.0,0.00013331,2]
[338209358,1726386653428,-2412.16,0.00013331,2]
[338209359,1726386653438,-902.27,0.00013331,2]
[338209360,1726386653448,-1114.81,0.00013331,2]
[338209361,1726386653459,-590.87,0.00013331,2]
[338209362,1726386653469,-1291.36,0.00013331,2]
[338209363,1726386653480,-3078.06,0.00013331,2]
[338209364,1726386653491,-1805.22,0.00013331,2]
[338209365,1726386653500,-1393.41,0.00013331,2]
[338209366,1726386653510,-619.5,0.00013331,2]
[338209367,1726386653520,-1836.24,0.00013331,2]
[338209368,1726386653530,-500.0,0.00013331,2]
[338209369,1726386653540,-1437.52,0.00013331,2]
[338209370,1726386653549,-748.26,0.00013331,2]
[338209371,1726386653560,-1080.77,0.00013331,2]
[338209372,1726386653570,-515.37,0.00013331,2]
[338209373,1726386653580,-752.33,0.00013331,2]
[338209374,1726386653590,-618.21,0.00013331,2]
[338209375,1726386653600,-579.73,0.00013331,2]
[338209376,1726386653610,-1002.53,0.00013331,2]
[338209377,1726386653620,-500.0,0.00013331,2]
[338209378,1726386653630,-515.5,0.00013331,2]
[338209379,1726386653640,-1779.54,0.00013331,2]
[338209380,1726386653649,-651.76,0.00013331,2]
[338209381,1726386653659,-1776.68,0.00013331,2]
[338209382,1726386653669,-500.0,0.00013331,2]
[338209383,1726386653679,-500.0,0.00013331,2]
[338209384,1726386653690,-500.0,0.00013331,2]
[338209385,1726386653700,-2137.83,0.00013331,2]
[338209386,1726386653710,-1091.66,0.00013331,2]
[338209387,1726386653720,-2288.36,0.00013331,2]
[338209388,1726386653730,-1983.39,0.00013331,2]
[338209389,1726386653740,-500.0,0.00013331,2]
[338209390,1726386653750,-589.98,0.00013331,2]
[338209391,1726386653760,-500.0,0.00013331,2]
[338209392,1726386653770,-500.0,0.00013331,2]
[338209393,1726386653780,-500.0,0.00013331,2]
[338209394,1726386653790,-646.3,0.00013331,2]
[338209395,1726386653799,-1741.77,0.00013331,2]
[338209396,1726386653809,-938.18,0.00013331,2]
[338209397,1726386653819,-528.66,0.00013331,2]
[338209398,1726386653828,-1133.43,0.00013331,2]
[338209399,1726386653838,-1044.98,0.00013331,2]
[338209400,1726386653848,-2653.92,0.00013331,2]
[338209401,1726386653858,-2096.53,0.00013331,2]
[338209402,1726386653868,-1005.33,0.00013331,2]
[338209403,1726386653878,-1243.03,0.00013331,2]
[338209404,1726386653887,-1748.44,0.00013331,2]
[338209405,1726386653898,-1177.2,0.00013331,2]
[338209406,1726386653908,-731.09,0.00013331,2]
[338209407,1726386653918,-1761.9,0.00013331,2]
[338209408,1726386653928,-1713.17,0.00013331,2]
[338209409,1726386653938,-500.0,0.00013331,2]
[338209410,1726386653947,-1325.82,0.00013331,2]
[338209411,1726386653957,-1492.55,0.00013331,2]
[338209412,1726386653966,-412.49656929,0.00013331,2]
[338209413,1726386653976,-653.79,0.00013331,2]
[338209414,1726386653985,-906.63,0.00013331,2]
[338209415,1726386653995,-1834.83,0.00013331,2]
[338209416,1726386654005,-500.0,0.00013331,2]
[338209417,1726386654015,-37692.85,0.00013331,2]
[338209418,1726386654025,-783.83,0.00013331,2]
[338209419,1726386654035,-1233.5,0.00013331,2]
[338209420,1726386654044,-500.0,0.00013331,2]
[338209421,1726386654054,-1026.37,0.00013331,2]
[338209422,1726386654064,-2744.15,0.00013331,2]
[338209423,1726386654074,-2296.47,0.00013331,2]
[338209424,1726386654084,-500.0,0.00013331,2]
[338209425,1726386654094,-793.21,0.00013331,2]
[338209426,1726386654105,-528.17,0.00013331,2]
[338209427,1726386654114,-731.12,0.00013331,2]
[338209428,1726386654123,-3505.49,0.00013331,2]
[338209429,1726386654133,-500.0,0.00013331,2]
[338209430,1726386654143,-1451.47,0.00013331,2]
[338209431,1726386654153,-1113.36,0.00013331,2]
[338209432,1726386654163,-500.0,0.00013331,2]
[338209433,1726386654172,-1469.02,0.00013331,2]
[338209434,1726386654183,-5674.86,0.00013331,2]
[338209435,1726386654193,-1123.21,0.00013331,2]
[338209436,1726386654203,-1895.66,0.00013331,2]
[338209437,1726386654213,-500.0,0.00013331,2]
[338209438,1726386654223,-6306.86,0.00013331,2]
[338209439,1726386654233,-500.0,0.00013331,2]
[338209440,1726386654242,-941.47,0.00013331,2]
[338209441,1726386654252,-687.97,0.00013331,2]
[338209442,1726386654262,-1613.22,0.00013331,2]
[338209443,1726386654271,-1288.28,0.00013331,2]
[338209444,1726386654282,-1324.08,0.00013331,2]
[338209445,1726386654291,-500.0,0.00013331,2]
[338209446,1726386654301,-500.0,0.00013331,2]
[338209447,1726386654311,-755.08,0.00013331,2]
[338209448,1726386654320,-2206.36,0.00013331,2]
[338209449,1726386654330,-5253.79,0.00013331,2]
[338209450,1726386654340,-633.9,0.00013331,2]
[338209451,1726386654350,-500.0,0.00013331,2]
[338209452,1726386654360,-500.0,0.00013331,2]
[338209453,1726386654369,-500.0,0.00013331,2]
[338209454,1726386654379,-1836.18,0.00013331,2]
[338209455,1726386654388,-500.0,0.00013331,2]
[338209456,1726386654398,-500.0,0.00013331,2]
[338209457,1726386654408,-500.0,0.00013331,2]
[338209458,1726386654418,-500.0,0.00013331,2]
[338209459,1726386654429,-1195.24,0.00013331,2]
[338209460,1726386654440,-2066.23,0.00013331,2]
[338209461,1726386654450,-5265.45,0.00013331,2]
[338209462,1726386654460,-500.0,0.00013331,2]
[338209463,1726386654469,-1198.34,0.00013331,2]
[338209464,1726386654479,-500.0,0.00013331,2]
[338209465,1726386654489,-1494.33,0.00013331,2]
[338209466,1726386654499,-1070.63,0.00013331,2]
[338209467,1726386654509,-625.13,0.00013331,2]
[338209468,1726386654519,-500.0,0.00013331,2]
[338209469,1726386654529,-577.47,0.00013331,2]
[338209470,1726386654539,-500.0,0.00013331,2]
[338209471,1726386654550,-1259.12,0.00013331,2]
[338209472,1726386654560,-898.73,0.00013331,2]
[338209473,1726386654572,-500.0,0.00013331,2]
[338209474,1726386654582,-2158.21,0.00013331,2]
[338209475,1726386654592,-1377.51,0.00013331,2]
[338209476,1726386654602,-2187.18,0.00013331,2]
[338209477,1726386654612,-500.0,0.00013331,2]
[338209478,1726386654622,-1790.42,0.00013331,2]
[338209479,1726386654632,-500.0,0.00013331,2]
[338209480,1726386654642,-3866.89,0.00013331,2]
[338209481,1726386654652,-500.0,0.00013331,2]
[338209482,1726386654662,-1154.78,0.00013331,2]
[338209483,1726386654672,-509.68,0.00013331,2]
[338209484,1726386654683,-809.72,0.00013331,2]
[338209485,1726386654693,-1899.94,0.00013331,2]
[338209486,1726386654702,-500.0,0.00013331,2]
[338209487,1726386654712,-1753.97,0.00013331,2]
[338209488,1726386654722,-533.25,0.00013331,2]
[338209489,1726386654732,-500.0,0.00013331,2]
[338209490,1726386654742,-747.56,0.00013331,2]
[338209491,1726386654752,-1324.16,0.00013331,2]
[338209492,1726386654762,-500.0,0.00013331,2]
[338209493,1726386654772,-2065.81,0.00013331,2]
[338209494,1726386654782,-3817.83,0.00013331,2]
[338209495,1726386654792,-838.03,0.00013331,2]
[338209496,1726386654803,-1091.04,0.00013331,2]
[338209497,1726386654812,-7177.3,0.00013331,2]
[338209498,1726386654822,-500.0,0.00013331,2]
[338209499,1726386654832,-500.0,0.00013331,2]
[338209500,1726386654842,-616.51,0.00013331,2]
[338209501,1726386654852,-2748.05,0.00013331,2]
[338209502,1726386654861,-1033.18,0.00013331,2]
[338209503,1726386654870,-606.95,0.00013331,2]
[338209504,1726386654880,-500.0,0.00013331,2]
[338209505,1726386654890,-500.0,0.00013331,2]
[338209506,1726386654900,-3584.94,0.00013331,2]
[338209507,1726386654910,-3719.36,0.00013331,2]
[338209508,1726386654920,-718.46,0.00013331,2]
[338209509,1726386654930,-500.0,0.00013331,2]
[338209510,1726386654940,-500.0,0.00013331,2]
[338209511,1726386654950,-212.30524309,0.00013331,2]
[338209512,1726386654960,-500.0,0.00013331,2]
[338209513,1726386654970,-500.0,0.00013331,2]
[338209514,1726386654980,-6552.93,0.00013331,2]
[338209515,1726386654990,-500.0,0.00013331,2]
[338209516,1726386655000,-2287.8,0.00013331,2]
[338209517,1726386655010,-1885.49,0.00013331,2]
[338209518,1726386655019,-2590.47,0.00013331,2]
[338209519,1726386655029,-500.0,0.00013331,2]
[338209520,1726386655039,-2059.56,0.00013331,2]
[338209521,1726386655048,-2663.67,0.00013331,2]
[338209522,1726386655058,-831.17,0.00013331,2]
[338209523,1726386655068,-775.53,0.00013331,2]
[338209524,1726386655078,-11999.75,0.00013331,2]
[338209525,1726386655087,-2667.45,0.00013331,2]
[338209526,1726386655097,-500.0,0.00013331,2]
[338209527,1726386655107,-8752.31,0.00013331,2]
[338209528,1726386655116,-1008.39,0.00013331,2]
[338209529,1726386655126,-3162.56,0.00013331,2]
[338209530,1726386655135,-500.0,0.00013331,2]
[338209531,1726386655145,-500.0,0.00013331,2]
[338209532,1726386655154,-1792.48,0.00013331,2]
[338209533,1726386655163,-8994.6,0.00013331,2]
[338209534,1726386655173,-38442.91,0.00013331,2]
[338209535,1726386655183,-500.0,0.00013331,2]
[338209536,1726386655193,-538.29,0.00013331,2]
[338209537,1726386655203,-500.0,0.00013331,2]
[338209538,1726386655398,-500.0,0.00013331,2]
[338209539,1726386655408,-3192.74,0.00013331,2]
[338209540,1726386655418,-961.96,0.00013331,2]
[338209541,1726386655428,-2222.79,0.00013331,2]
[338209542,1726386655439,-500.0,0.00013331,2]
[338209543,1726386655448,-500.0,0.00013331,2]
[338209544,1726386655458,-1669.12,0.00013331,2]
[338209545,1726386655467,-500.0,0.00013331,2]
[338209546,1726386655477,-761.1,0.00013331,2]
[338209547,1726386655486,-2565.54,0.00013331,2]
[338209548,1726386655495,-1021.7,0.00013331,2]
[338209549,1726386655505,-2538.68,0.00013331,2]
[338209550,1726386655514,-3498.66,0.00013331,2]
[338209551,1726386655523,-4772.15,0.00013331,2]
[338209552,1726386655532,-500.0,0.00013331,2]
[338209553,1726386655541,-1063.36,0.00013331,2]
[338209554,1726386655550,-636.46,0.00013331,2]
[338209555,1726386655559,-1130.26,0.00013331,2]
[338209556,1726386655569,-1957.62,0.00013331,2]
[338209557,1726386655579,-500.0,0.00013332,2]
[338209558,1726386655588,-1036.95,0.00013332,2]
[338209559,1726386655597,-969.32,0.00013332,2]
[338209560,1726386655606,-576.29,0.00013332,2]
[338209561,1726386655616,-500.0,0.00013332,2]
[338209562,1726386655625,-500.0,0.00013332,2]
[338209563,1726386655634,-500.0,0.00013332,2]
[338209564,1726386655644,-500.0,0.00013332,2]
[338209565,1726386655653,-500.0,0.00013332,2]
[338209566,1726386655662,-500.0,0.00013332,2]
[338209567,1726386655671,-500.66,0.00013332,2]
[338209568,1726386655680,-500.0,0.00013332,2]
[338209569,1726386655690,-500.0,0.00013332,2]
[338209570,1726386655699,-500.0,0.00013332,2]
[338209571,1726386655708,-626.92,0.00013332,2]
[338209572,1726386655717,-929.36,0.00013332,2]
[338209573,1726386655726,-633.96,0.00013332,2]
[338209574,1726386655735,-500.0,0.00013332,2]
[338209575,1726386655745,-503.57,0.00013332,2]
[338209576,1726386655754,-829.2,0.00013332,2]
[338209577,1726386655766,-500.0,0.00013332,2]
[338209578,1726386655775,-500.0,0.00013332,2]
[338209579,1726386655784,-891.82,0.00013332,2]
[338209580,1726386655793,-919.28,0.00013332,2]
[338209581,1726386655803,-520.65,0.00013332,2]
[338209582,1726386655812,-1127.16,0.00013332,2]
[338209583,1726386655821,-500.0,0.00013332,2]
[338209584,1726386655830,-811.79,0.00013332,2]
[338209585,1726386655839,-1430.93,0.00013332,2]
[338209586,1726386655848,-500.0,0.00013332,2]
[338209587,1726386655857,-518.92,0.00013332,2]
[338209588,1726386655867,-500.0,0.00013332,2]
[338209589,1726386655877,-500.0,0.00013332,2]
[338209590,1726386655887,-619.57,0.00013332,2]
[338209591,1726386655899,-500.0,0.00013332,2]
[338209592,1726386655909,-1437.76,0.00013332,2]
[338209593,1726386655919,-500.0,0.00013332,2]
[338209594,1726386655930,-500.0,0.00013332,2]
[338209595,1726386655941,-500.0,0.00013332,2]
[338209596,1726386655950,-929.12,0.00013332,2]
[338209597,1726386655959,-196.66128154,0.00013332,2]
[338209598,1726386655969,-3127.64,0.00013332,2]
[338209599,1726386655980,-519.89177599,0.00013332,2]
[338209600,1726386655989,-1380.36,0.00013332,2]
[338209601,1726386656000,-500.0,0.00013332,2]
[338209602,1726386656009,-500.0,0.00013332,2]
[338209603,1726386656020,-500.0,0.00013332,2]
[338209604,1726386656029,-500.0,0.00013332,2]
[338209605,1726386656038,-500.0,0.00013332,2]
[338209606,1726386656049,-2704.61,0.00013332,2]
[338209607,1726386656059,-963.73,0.00013332,2]
[338209608,1726386656068,-500.0,0.00013332,2]
[338209609,1726386656078,-500.0,0.00013332,2]
[338209610,1726386656087,-500.0,0.00013332,2]
[338209611,1726386656096,-500.0,0.00013332,2]
[338209612,1726386656105,-1179.51,0.00013332,2]
[338209613,1726386656115,-500.0,0.00013332,2]
[338209614,1726386656125,-500.0,0.00013332,2]
[338209615,1726386656134,-1009.7,0.00013332,2]
[338209616,1726386656143,-590.02,0.00013332,2]
[338209617,1726386656152,-834.68,0.00013332,2]
[338209618,1726386656162,-667.68,0.00013332,2]
[338209619,1726386656170,-2005.99,0.00013332,2]
[338209620,1726386656179,-908.12,0.00013332,2]
[338209621,1726386656189,-1923.49,0.00013332,2]
[338209622,1726386656198,-2050.36,0.00013332,2]
[338209623,1726386656208,-1528.57,0.00013332,2]
[338209624,1726386656218,-500.0,0.00013332,2]
[338209625,1726386656227,-989.82,0.00013332,2]
[338209626,1726386656236,-1331.9,0.00013332,2]
[338209627,1726386656247,-1908.56,0.00013332,2]
[338209628,1726386656256,-1368.73,0.00013332,2]
[338209629,1726386656266,-500.0,0.00013332,2]
[338209630,1726386656275,-648.5,0.00013332,2]
[338209631,1726386656286,-500.0,0.00013332,2]
[338209632,1726386656295,-548.36,0.00013332,2]
[338209633,1726386656305,-500.0,0.00013332,2]
[338209634,1726386656315,-500.0,0.00013332,2]
[338209635,1726386656325,-1050.22,0.00013332,2]
[338209636,1726386656334,-1215.28,0.00013332,2]
[338209637,1726386656344,-1018.5,0.00013332,2]
[338209638,1726386656353,-500.0,0.00013332,2]
[338209639,1726386656364,-2164.46,0.00013332,2]
[338209640,1726386656375,-500.0,0.00013332,2]
[338209641,1726386656386,-500.0,0.00013332,2]
[338209642,1726386656395,-560.35,0.00013332,2]
[338209643,1726386656405,-500.0,0.00013332,2]
[338209644,1726386656415,-1007.64,0.00013332,2]
[338209645,1726386656425,-500.0,0.00013332,2]
[338209646,1726386656434,-1752.2,0.00013332,2]
[338209647,1726386656444,-500.0,0.00013332,2]
[338209648,1726386656453,-500.0,0.00013332,2]
[338209649,1726386656463,-500.0,0.00013332,2]
[338209650,1726386656473,-500.0,0.00013332,2]
[338209651,1726386656483,-1728.97,0.00013332,2]
[338209652,1726386656493,-500.0,0.00013332,2]
[338209653,1726386656502,-500.0,0.00013332,2]
[338209654,1726386656511,-500.0,0.00013332,2]
[338209655,1726386656520,-1023.85,0.00013332,2]
[338209656,1726386656552,-500.0,0.00013332,2]
[338209657,1726386656561,-2030.25,0.00013332,2]
[338209658,1726386656572,-500.0,0.00013332,2]
[338209659,1726386656582,-500.38,0.00013332,2]
[338209660,1726386656591,-575.23,0.00013332,2]
[338209661,1726386656601,-1137.78,0.00013332,2]
[338209662,1726386656611,-2008.53,0.00013332,2]
[338209663,1726386656620,-500.0,0.00013332,2]
[338209664,1726386656630,-500.0,0.00013332,2]
[338209665,1726386656639,-1054.24,0.00013332,2]
[338209666,1726386656649,-2180.97,0.00013332,2]
[338209667,1726386656658,-500.0,0.00013332,2]
[338209668,1726386656667,-1000.0,0.00013332,2]
[338209669,1726386656677,-500.0,0.00013332,2]
[338209670,1726386656687,-500.0,0.00013332,2]
[338209671,1726386656696,-1756.97,0.00013332,2]
[338209672,1726386656706,-1322.99,0.00013332,2]
[338209673,1726386656715,-1771.35,0.00013332,2]
[338209674,1726386656724,-1097.13,0.00013332,2]
[338209675,1726386656734,-1068.8,0.00013332,2]
[338209676,1726386656744,-1079.61,0.00013332,2]